bitfinex/quotes_SOLUSD_20241013
["timestamp","ask_amount","ask_price","bid_price","bid_amount"]
[1728823940322,21.9999,147.75,147.7,6.7701]
[1728823941117,21.9999,147.75,147.71,6.7699]
[1728823951611,15.2317,147.75,147.68,43.776884]
[1728823951819,6.7686,147.74,147.7,6.7703]
[1728823952126,6.7686,147.74,147.68,43.776884]
[1728823952127,6.7692,147.73,147.69,6.7708]
[1728823952319,15.2317,147.75,147.69,20.0]
[1728823952630,6.7697,147.72,147.68,6.7712]
[1728823954337,6.7697,147.72,147.67,6.7715]
[1728823954510,6.77,147.71,147.68,20.0]
[1728823955227,6.7696,147.72,147.68,26.7712]
[1728823957541,6.7701,147.71,147.67,6.7717]
[1728823957722,6.7701,147.71,147.68,20.0]
[1728823964633,23.776884,147.74,147.64,24.94076483]
[1728823964826,6.7697,147.72,147.68,6.7712]
[1728823965434,6.7691,147.73,147.69,6.7706]
[1728823972850,32.1527,147.75,147.64,20.0]
[1728823973052,6.7704,147.71,147.66,6.7722]
[1728823973245,6.7704,147.71,147.67,20.0]
[1728823973758,6.771,147.69,147.65,6.7727]
[1728823975450,15.6862,147.7,147.6,20.0]
[1728823975631,6.7718,147.67,147.63,6.7735]
[1728823976248,6.7718,147.67,147.59,11.2643]
[1728823976559,6.7727,147.66,147.61,6.7744]
[1728823977065,20.0,147.69,147.57,9.29511941]
[1728823977266,36.9279,147.69,147.6,6.7749]
[1728823977944,6.7728,147.65,147.61,6.7745]
[1728823979848,16.9279,147.69,147.61,6.7745]
[1728823981058,6.773,147.65,147.6,6.7749]
[1728823981269,22.4592,147.65,147.6,6.7749]
[1728823982562,6.7737,147.63,147.58,6.7755]
[1728823982751,6.7743,147.62,147.57,6.7763]
[1728823982948,15.6862,147.65,147.57,6.7763]
[1728823983247,6.4802,147.62,147.52,4.8578873]
[1728823983463,6.4802,147.62,147.51,11.2643]
[1728823984370,6.775,147.6,147.56,6.7768]
[1728823985372,6.775,147.6,147.51,11.2643]
[1728823985373,6.775,147.6,147.55,6.7769]
[1728823985947,6.7746,147.61,147.56,6.7767]
[1728823986152,13.2543,147.62,147.58,6.7759]
[1728823986348,13.2543,147.62,147.57,6.7763]
[1728823988283,6.7749,147.61,147.56,6.7767]
[1728823990669,6.7755,147.59,147.55,6.7773]
[1728823991558,15.6862,147.61,147.55,6.7773]
[1728823991762,6.7751,147.6,147.55,6.7773]
[1728823993070,22.4608,147.61,147.56,6.7765]
[1728823995573,15.6862,147.61,147.54,25.13220328]
[1728823995791,15.6862,147.61,147.55,20.0]
[1728823995972,15.6862,147.61,147.58,6.7759]
[1728823997457,22.4609,147.61,147.57,6.7763]
[1728824004974,15.6862,147.61,147.55,21.35519886]
[1728824005176,6.4802,147.62,147.6,6.7749]
[1728824005380,6.4802,147.62,147.59,6.7753]
[1728824005582,6.4802,147.62,147.58,6.7758]
[1728824006287,6.4802,147.62,147.55,21.35519886]
[1728824006591,6.4802,147.62,147.59,6.7755]
[1728824007488,6.4802,147.62,147.58,6.7758]
[1728824008465,13.2544,147.62,147.58,6.7758]
[1728824009091,13.2544,147.62,147.55,20.0]
[1728824009392,6.7748,147.61,147.57,6.7763]
[1728824010396,6.4802,147.62,147.55,20.0]
[1728824010692,6.7756,147.59,147.51,11.2643]
[1728824010871,6.7756,147.59,147.54,6.7776]
[1728824011762,15.9347,147.6,147.54,6.7776]
[1728824011968,6.7761,147.58,147.54,20.0]
[1728824013493,6.7761,147.58,147.54,6.7776]
[1728824014490,6.7756,147.59,147.54,6.7776]
[1728824015888,6.7756,147.59,147.55,6.7773]
[1728824025696,6.7756,147.59,147.55,6.7773]
[1728824040915,6.776,147.58,147.54,6.7777]
[1728824041807,15.9347,147.6,147.53,6.7781]
[1728824041808,6.7767,147.57,147.53,6.7781]
[1728824042400,6.777,147.56,147.47,20.53132028]
[1728824042612,6.777,147.56,147.52,6.7785]
[1728824042807,6.777,147.56,147.47,20.53132028]
[1728824042808,6.7773,147.55,147.51,6.7791]
[1728824043018,6.7773,147.55,147.47,11.2643]
[1728824043206,6.777,147.56,147.51,6.7791]
[1728824043511,6.777,147.56,147.48,1.35577974]
[1728824043694,6.1787,147.57,147.53,6.7779]
[1728824045007,6.1787,147.57,147.54,6.7777]
[1728824045213,6.7763,147.58,147.49,43.776884]
[1728824045411,6.7763,147.58,147.53,6.7782]
[1728824046994,28.8885,147.6,147.5,1.35555505]
[1728824047199,28.8885,147.6,147.55,6.7772]
[1728824047398,6.7756,147.59,147.55,6.7772]
[1728824053722,22.1134,147.6,147.5,4.70893305]
[1728824053928,28.8887,147.6,147.56,6.7768]
[1728824054127,28.8887,147.6,147.53,20.0]
[1728824054832,22.1134,147.6,147.53,20.0]
[1728824055014,6.7755,147.59,147.53,20.0]
[1728824057427,6.7755,147.59,147.53,21.35544238]
[1728824058012,6.7755,147.59,147.53,20.0]
[1728824058412,6.7755,147.59,147.55,6.7772]
[1728824061002,22.1134,147.6,147.59,6.7755]
[1728824061210,20.0,147.63,147.55,1.35544153]
[1728824061428,6.7744,147.62,147.58,6.7758]
[1728824061737,20.0,147.63,147.55,1.35544153]
[1728824061738,6.7746,147.61,147.57,6.7764]
[1728824063735,28.8407,147.64,147.58,1.35524898]
[1728824064033,6.7738,147.63,147.59,6.7753]
[1728824065847,6.7738,147.63,147.58,6.7758]
[1728824066634,6.7743,147.62,147.58,6.7758]
[1728824067819,28.8406,147.64,147.59,6.7753]
[1728824068020,6.7738,147.63,147.59,6.7753]
[1728824068334,6.7738,147.63,147.58,6.7758]
[1728824074540,6.7741,147.62,147.58,6.7758]
[1728824077628,22.0674,147.64,147.6,6.7746]
[1728824077825,22.0674,147.64,147.56,23.776884]
[1728824078027,22.0674,147.64,147.61,6.7745]
[1728824078371,22.0674,147.64,147.6,6.7749]
[1728824078937,22.0674,147.64,147.58,6.7756]
[1728824079252,6.7739,147.63,147.58,6.7756]
[1728824081650,22.0674,147.64,147.58,6.7756]
[1728824081948,6.7743,147.62,147.58,6.7756]
[1728824082251,6.775,147.6,147.56,6.7767]
[1728824082427,6.775,147.6,147.52,11.2643]
[1728824082839,6.775,147.6,147.53,1.35540709]
[1728824083340,6.775,147.6,147.56,6.7767]
[1728824084953,6.7755,147.59,147.55,6.7772]
[1728824087931,43.776884,147.63,147.55,6.7772]
[1728824088254,6.7751,147.6,147.55,6.7772]
[1728824089966,6.7755,147.59,147.55,6.7772]
[1728824091145,6.7752,147.6,147.55,6.7772]
[1728824101857,6.7752,147.6,147.53,20.0]
[1728824102071,6.7752,147.6,147.56,6.7768]
[1728824102472,23.776884,147.63,147.52,11.2643]
[1728824102769,6.7756,147.59,147.55,6.7773]
[1728824103354,6.7761,147.58,147.5,23.776884]
[1728824103553,6.7761,147.58,147.51,20.0]
[1728824103768,6.7761,147.58,147.53,6.7781]
[1728824106268,22.4838,147.59,147.53,6.7781]
[1728824106459,6.7764,147.57,147.53,6.7781]
[1728824109987,6.7769,147.56,147.52,6.7786]
[1728824110965,6.7765,147.57,147.53,6.7782]
[1728824111769,6.7765,147.57,147.49,21.35577323]
[1728824111985,6.7765,147.57,147.52,6.7786]
[1728824117593,23.776884,147.58,147.52,6.7786]
[1728824117594,6.7769,147.56,147.52,6.7786]
[1728824123087,6.7764,147.57,147.53,6.7782]
[1728824127186,6.7765,147.57,147.53,6.7782]
[1728824130396,29.2596,147.59,147.54,6.7774]
[1728824130999,6.776,147.58,147.54,6.7774]
[1728824137297,6.776,147.58,147.53,6.7781]
[1728824137498,6.7765,147.57,147.53,6.7781]
[1728824143909,29.2594,147.59,147.55,6.7771]
[1728824146384,6.7749,147.61,147.57,6.7764]
[1728824146594,6.7742,147.62,147.57,6.7764]
[1728824150011,6.7746,147.61,147.57,6.7764]
[1728824151496,21.9243,147.63,147.54,20.0]
[1728824151700,6.7751,147.6,147.56,6.7767]
[1728824158919,23.776884,147.62,147.49,35.7355]
[1728824159103,6.7761,147.58,147.55,20.0]
[1728824160806,6.7761,147.58,147.54,6.7776]
[1728824161009,6.7766,147.57,147.53,6.7781]
[1728824168249,6.776,147.58,147.54,6.7777]
[1728824170234,1.17429079,147.67,147.63,6.7736]
[1728824170425,1.17429079,147.67,147.61,16.9359]
[1728824170426,6.7709,147.69,147.64,6.7731]
[1728824170623,22.5678,147.7,147.63,6.7736]
[1728824170624,6.7714,147.68,147.63,6.7736]
[1728824170941,6.771,147.69,147.63,23.7069]
[1728824171319,6.771,147.69,147.64,6.7731]
[1728824171828,29.3383,147.7,147.64,6.7731]
[1728824173148,29.3383,147.7,147.64,36.7731]
[1728824175152,29.3383,147.7,147.64,6.7731]
[1728824175650,29.3383,147.7,147.63,16.9333]
[1728824175838,29.3383,147.7,147.65,6.7727]
[1728824176852,29.3383,147.7,147.64,1.35452635]
[1728824177016,29.3383,147.7,147.66,6.7722]
[1728824178249,29.3383,147.7,147.66,36.7722]
[1728824178744,22.5678,147.7,147.66,36.7722]
[1728824179622,22.5678,147.7,147.65,23.7037]
[1728824181441,6.771,147.69,147.65,23.7037]
[1728824181850,6.771,147.69,147.65,16.9311]
[1728824183759,22.5678,147.7,147.65,16.9311]
[1728824183952,6.7715,147.68,147.64,6.7731]
[1728824185332,6.7723,147.67,147.63,20.0]
[1728824187536,6.7724,147.66,147.62,23.7085]
[1728824188063,23.776884,147.69,147.58,19.9824856]
[1728824188243,20.0,147.68,147.55,4.4712]
[1728824188436,23.776884,147.67,147.55,4.4712]
[1728824189363,6.7737,147.63,147.59,6.7754]
[1728824189559,23.776884,147.67,147.59,6.7754]
[1728824189744,6.7733,147.64,147.59,23.7135]
[1728824191863,6.7733,147.64,147.6,6.7749]
[1728824192848,6.7745,147.62,147.57,6.7763]
[1728824193234,6.7746,147.61,147.57,6.7763]
[1728824197767,6.7746,147.61,147.56,23.7183]
[1728824205674,6.7746,147.61,147.57,6.7762]
[1728824214478,23.776884,147.63,147.56,16.9416]
[1728824214781,6.7751,147.6,147.56,23.7184]
[1728824222574,6.7743,147.62,147.58,6.7756]
[1728824222775,22.3698,147.64,147.58,6.7756]
[1728824222981,6.7738,147.63,147.58,6.7756]
[1728824223173,6.7738,147.63,147.59,6.7755]
[1728824223788,6.7738,147.63,147.58,6.7758]
[1728824223952,6.7742,147.62,147.58,6.7758]
[1728824231483,6.7746,147.61,147.57,6.7763]
[1728824235401,22.3698,147.64,147.57,1.35517529]
[1728824235707,6.7741,147.63,147.58,6.7758]
[1728824236703,6.7741,147.63,147.58,8.1308623]
[1728824237001,6.7741,147.63,147.58,6.7758]
[1728824237508,6.7741,147.63,147.58,8.13087015]
[1728824238322,6.7741,147.63,147.58,6.7758]
[1728824238808,6.7742,147.62,147.58,6.7758]
[1728824243617,6.7748,147.61,147.57,23.7166]
[1728824243919,6.7751,147.6,147.57,16.9403]
[1728824244901,39.3034,147.64,147.5,11.2643]
[1728824244902,20.0,147.63,147.5,11.2643]
[1728824245115,6.776,147.58,147.54,6.7778]
[1728824245403,6.776,147.58,147.54,23.7214]
[1728824247129,6.7765,147.57,147.53,6.7781]
[1728824247809,10.60816075,147.66,147.54,15.7355]
[1728824248009,6.7737,147.63,147.55,23.776884]
[1728824248523,6.7737,147.63,147.56,1.35503957]
[1728824248724,6.7737,147.63,147.59,16.9383]
[1728824253122,6.7737,147.63,147.59,23.7137]
[1728824253622,6.7733,147.64,147.6,6.775]
[1728824256335,6.7733,147.64,147.59,23.7136]
[1728824257239,6.7738,147.63,147.59,23.7136]
[1728824261148,6.7732,147.64,147.6,6.775]
[1728824262232,6.7732,147.64,147.6,8.12989024]
[1728824263543,6.7732,147.64,147.6,6.775]
[1728824264619,6.7732,147.64,147.59,16.9383]
[1728824264931,6.7732,147.64,147.59,23.7136]
[1728824265849,6.7732,147.64,147.6,1.35488246]
[1728824266350,6.7732,147.64,147.6,8.12988246]
[1728824267244,6.7742,147.62,147.59,16.9383]
[1728824268535,6.7742,147.62,147.57,26.7763]
[1728824269042,40.707884,147.66,147.57,20.0]
[1728824269043,6.7753,147.6,147.57,20.0]
[1728824269259,6.7756,147.59,147.56,16.9414]
[1728824270045,6.7756,147.59,147.52,7.92374115]
[1728824270046,6.0546,147.62,147.54,6.7777]
[1728824270347,6.7763,147.58,147.53,6.7781]
[1728824271125,6.7763,147.58,147.53,23.7232]
[1728824271340,6.7763,147.58,147.54,20.0]
[1728824274522,6.7763,147.58,147.54,28.13312872]
[1728824275237,40.054284,147.61,147.54,28.13312872]
[1728824275450,6.7756,147.59,147.54,28.13312872]
[1728824276742,6.7756,147.59,147.54,26.7777]
[1728824277152,6.7756,147.59,147.54,28.13312652]
[1728824280627,6.7756,147.59,147.55,6.7773]
[1728824283149,16.2774,147.61,147.54,21.35542231]
[1728824283356,6.7752,147.6,147.56,6.7768]
[1728824283528,6.7752,147.6,147.55,23.7202]
[1728824284133,6.7752,147.6,147.56,6.7768]
[1728824292955,6.7742,147.62,147.58,6.7758]
[1728824297052,6.7742,147.62,147.57,23.7171]
[1728824297469,6.7746,147.61,147.57,23.7171]
[1728824298473,6.7753,147.6,147.56,6.7768]
[1728824298650,6.7755,147.59,147.57,20.0]
[1728824298856,6.7764,147.57,147.54,16.9438]
[1728824299052,6.7761,147.58,147.55,20.0]
[1728824300684,6.7761,147.58,147.54,23.7215]
[1728824303685,6.7761,147.58,147.54,23.7215]
[1728824305358,6.7756,147.59,147.55,6.7773]
[1728824329930,21.3234,147.61,147.54,16.9438]
[1728824330107,6.7763,147.58,147.54,23.7215]
[1728824339038,21.3234,147.61,147.5,11.2643]
[1728824339039,23.776884,147.6,147.5,11.2643]
[1728824339246,23.2265,147.56,147.48,7.13388035]
[1728824339420,23.2265,147.56,147.51,6.779]
[1728824340834,16.4493,147.56,147.53,6.7779]
[1728824343557,6.337,147.57,147.52,1.35563812]
[1728824343721,23.2244,147.6,147.56,6.7767]
[1728824344329,16.4493,147.6,147.56,6.7767]
[1728824344541,23.2244,147.6,147.56,6.7767]
[1728824346918,23.2244,147.6,147.56,6.74370279]
[1728824352044,16.4493,147.6,147.57,6.7764]
[1728824352353,23.2244,147.6,147.56,6.7768]
[1728824357849,6.7758,147.59,147.55,16.9428]
[1728824360642,16.4493,147.6,147.54,6.7777]
[1728824360829,6.7762,147.58,147.54,6.7777]
[1728824363434,6.7756,147.59,147.55,6.7773]
[1728824376061,6.776,147.58,147.54,23.7219]
[1728824382768,16.4493,147.6,147.54,16.9442]
[1728824382971,16.4493,147.6,147.55,1.35535212]
[1728824383154,16.4493,147.6,147.54,16.9442]
[1728824383346,16.4493,147.6,147.55,1.35533951]
[1728824384463,23.2244,147.6,147.56,6.7768]
[1728824390383,16.4493,147.6,147.56,6.7767]
[1728824391465,16.4493,147.6,147.57,6.7764]
[1728824392096,6.7763,147.58,147.54,23.7218]
[1728824400279,16.4493,147.6,147.54,16.9442]
[1728824400489,6.7756,147.59,147.55,6.7772]
[1728824401563,6.7756,147.59,147.54,23.7217]
[1728824402269,6.7764,147.57,147.54,20.0]
[1728824403188,6.7764,147.57,147.51,16.9471]
[1728824403371,6.7774,147.55,147.51,16.9471]
[1728824406491,6.7774,147.55,147.51,23.7262]
[1728824407869,16.3725,147.55,147.48,16.9507]
[1728824408071,6.7785,147.53,147.48,23.7308]
[1728824408892,6.7785,147.53,147.49,6.78]
[1728824411399,6.7791,147.52,147.48,16.9507]
[1728824411703,16.3725,147.55,147.48,23.731]
[1728824411886,6.7784,147.53,147.48,23.731]
[1728824412704,6.7784,147.53,147.48,16.9507]
[1728824413003,6.7784,147.53,147.49,6.78]
[1728824428325,6.7788,147.52,147.48,6.7805]
[1728824428534,6.78,147.5,147.46,6.7813]
[1728824428728,6.7801,147.49,147.45,16.954]
[1728824430527,6.7801,147.49,147.45,23.7358]
[1728824431628,15.6831,147.51,147.45,16.954]
[1728824431835,22.4623,147.51,147.47,6.7807]
[1728824434736,6.7784,147.53,147.48,6.7801]
[1728824434934,6.7784,147.53,147.49,6.7797]
[1728824435333,6.4581,147.54,147.43,1.35586638]
[1728824435537,6.4581,147.54,147.5,6.7795]
[1728824435538,13.236,147.54,147.5,6.7795]
[1728824435836,13.236,147.54,147.49,6.7799]
[1728824436040,13.236,147.54,147.49,8.13574353]
[1728824436366,13.236,147.54,147.49,6.7799]
[1728824437245,6.4581,147.54,147.5,1.35581944]
[1728824437427,6.4581,147.54,147.51,6.779]
[1728824442443,6.4581,147.54,147.5,21.35572246]
[1728824442650,6.4581,147.54,147.5,28.13522496]
[1728824442850,6.4581,147.54,147.5,26.7795]
[1728824445137,13.236,147.54,147.5,20.0]
[1728824448862,6.7784,147.53,147.5,20.0]
[1728824450263,6.4581,147.54,147.5,20.0]
[1728824450562,6.4581,147.54,147.5,28.13549678]
[1728824450563,13.2359,147.54,147.5,28.13549678]
[1728824451361,6.4581,147.54,147.5,28.13549678]
[1728824452054,6.4581,147.54,147.51,6.7791]
[1728824454450,6.1787,147.57,147.52,1.35567956]
[1728824454765,12.9552,147.57,147.52,6.7783]
[1728824455144,12.9552,147.57,147.52,8.13386683]
[1728824456450,6.777,147.56,147.52,8.13386683]
[1728824456846,12.9552,147.57,147.53,6.7782]
[1728824457049,21.9629,147.59,147.55,6.7773]
[1728824463566,15.1873,147.59,147.55,6.7773]
[1728824464061,15.1873,147.59,147.54,20.0]
[1728824464256,15.1873,147.59,147.56,6.7768]
[1728824465161,21.9628,147.59,147.55,6.7772]
[1728824468487,21.9628,147.59,147.55,8.13250045]
[1728824468666,21.9628,147.59,147.55,6.7772]
[1728824472084,15.1873,147.59,147.54,20.0]
[1728824472269,6.7766,147.57,147.54,20.0]
[1728824474893,6.2174,147.58,147.47,20.0]
[1728824475094,6.7774,147.55,147.52,20.0]
[1728824475590,6.2174,147.58,147.52,20.0]
[1728824475774,6.777,147.56,147.52,20.0]
[1728824475969,6.777,147.56,147.52,6.7786]
[1728824478189,6.7775,147.55,147.51,26.779]
[1728824478769,6.7779,147.54,147.5,23.7279]
[1728824479377,6.7786,147.53,147.49,20.0]
[1728824479593,6.7786,147.53,147.49,26.78]
[1728824480271,6.7787,147.52,147.48,6.7805]
[1728824480466,6.7787,147.52,147.49,20.0]
[1728824481274,12.9957,147.53,147.49,20.0]
[1728824484304,6.7787,147.52,147.49,20.0]
[1728824486312,6.7788,147.52,147.48,26.7805]
[1728824492203,6.2174,147.53,147.48,21.3559364]
[1728824492517,6.2174,147.53,147.5,6.7796]
[1728824493298,6.7779,147.54,147.5,6.7796]
[1728824497918,21.8175,147.55,147.51,6.7791]
[1728824498119,6.7781,147.54,147.45,20.0]
[1728824498319,6.7785,147.53,147.49,6.78]
[1728824498619,6.7785,147.53,147.49,23.7297]
[1728824499495,6.7793,147.51,147.47,20.0]
[1728824500024,6.7793,147.51,147.46,23.734]
[1728824500316,6.7793,147.51,147.42,9.28668455]
[1728824500317,22.8794,147.5,147.4,6.4203248]
[1728824500531,6.7802,147.49,147.45,6.7818]
[1728824506033,6.7802,147.49,147.43,16.9565]
[1728824506205,6.7802,147.49,147.44,26.7822]
[1728824511139,6.7802,147.49,147.43,16.9565]
[1728824511427,6.7802,147.49,147.45,6.7819]
[1728824520742,22.8794,147.5,147.44,26.7822]
[1728824520743,6.7808,147.48,147.44,26.7822]
[1728824520935,22.8794,147.5,147.44,20.0]
[1728824521137,6.7806,147.48,147.44,26.7823]
[1728824521918,6.7806,147.48,147.44,28.13863733]
[1728824522138,6.7801,147.49,147.45,6.7818]
[1728824525648,22.8794,147.5,147.47,6.7806]
[1728824525852,15.1945,147.53,147.48,6.7801]
[1728824526143,6.7787,147.52,147.48,6.7801]
[1728824526348,6.7787,147.52,147.47,23.7331]
[1728824527248,21.9728,147.53,147.49,6.78]
[1728824527546,15.1945,147.53,147.5,6.7796]
[1728824527742,15.1945,147.53,147.48,1.35598528]
[1728824528143,21.9729,147.53,147.49,6.7799]
[1728824528344,15.1945,147.53,147.5,8.13552595]
[1728824528650,15.1945,147.53,147.5,6.7796]
[1728824529239,6.2806,147.54,147.49,1.35592595]
[1728824529440,6.2806,147.54,147.51,6.7791]
[1728824530130,6.2806,147.54,147.51,6.7789]
[1728824530356,6.7774,147.55,147.51,6.7789]
[1728824531343,6.7774,147.55,147.51,23.7263]
[1728824531742,15.1945,147.57,147.47,21.35575241]
[1728824531931,6.7782,147.54,147.49,6.78]
[1728824533859,23.776884,147.56,147.48,23.7311]
[1728824535331,6.7788,147.52,147.48,23.7311]
[1728824537954,6.7783,147.53,147.48,23.7311]
[1728824538453,6.7779,147.54,147.49,1.35588475]
[1728824538855,6.7779,147.54,147.5,6.7796]
[1728824539048,6.7783,147.53,147.49,6.78]
[1728824541666,6.7776,147.55,147.51,6.7791]
[1728824542678,15.1945,147.57,147.53,6.7778]
[1728824542860,15.1945,147.57,147.54,8.13311002]
[1728824543066,15.1945,147.57,147.54,6.7777]
[1728824543271,15.1945,147.57,147.52,16.9464]
[1728824543575,15.1945,147.57,147.53,6.7781]
[1728824544165,15.1945,147.57,147.52,16.9464]
[1728824544484,6.7751,147.6,147.55,6.7772]
[1728824544672,6.7751,147.6,147.55,8.13250301]
[1728824545877,6.7755,147.59,147.55,8.13250301]
[1728824546879,15.4922,147.61,147.55,6.7772]
[1728824547479,15.4922,147.61,147.55,8.13246601]
[1728824548465,6.7755,147.59,147.55,8.13246601]
[1728824548662,6.7763,147.58,147.54,16.9441]
[1728824548866,15.4922,147.61,147.54,20.0]
[1728824548867,23.776884,147.6,147.54,20.0]
[1728824549090,6.7761,147.58,147.54,20.0]
[1728824550985,23.776884,147.6,147.51,16.9473]
[1728824551168,6.7768,147.57,147.52,26.7782]
[1728824551759,6.7768,147.57,147.52,28.13373294]
[1728824551979,23.776884,147.6,147.52,26.7782]
[1728824552186,6.7771,147.56,147.52,26.7782]
[1728824552378,6.7771,147.56,147.52,28.1338054]
[1728824552583,6.7773,147.55,147.52,20.0]
[1728824553169,22.7232,147.55,147.48,16.9508]
[1728824554194,22.7232,147.55,147.49,20.0]
[1728824554384,6.7792,147.51,147.49,20.0]
[1728824555871,6.7792,147.51,147.42,4.4712]
[1728824555872,60.722184,147.54,147.4,18.33614848]
[1728824556076,6.7806,147.48,147.44,16.9551]
[1728824556383,6.7806,147.48,147.44,23.7373]
[1728824557173,6.7802,147.49,147.44,23.7373]
[1728824563894,6.7802,147.49,147.44,16.9551]
[1728824564092,6.7802,147.49,147.45,6.7819]
[1728824564289,22.7232,147.5,147.46,6.7814]
[1728824567493,22.7232,147.5,147.47,6.7809]
[1728824567679,66.500084,147.54,147.47,8.13708482]
[1728824567883,6.7788,147.52,147.47,8.13708482]
[1728824568576,6.7788,147.52,147.47,6.7809]
[1728824568784,6.7792,147.51,147.47,6.7809]
[1728824569070,6.7792,147.51,147.46,23.7345]
[1728824573009,6.7792,147.51,147.47,6.781]
[1728824574714,6.7792,147.51,147.46,16.9531]
[1728824574890,6.7792,147.51,147.46,23.7345]
[1728824575809,66.500084,147.54,147.46,23.7345]
[1728824575991,6.7796,147.5,147.46,23.7345]
[1728824576804,6.7793,147.51,147.47,8.13707852]
[1728824577010,6.7793,147.51,147.47,6.781]
[1728824577894,66.500084,147.54,147.46,16.9531]
[1728824578117,6.7796,147.5,147.46,23.7345]
[1728824581495,66.500084,147.54,147.4,11.2643]
[1728824581496,6.7806,147.48,147.44,6.7823]
[1728824583515,6.7802,147.49,147.45,1.35622048]
[1728824583933,6.7792,147.51,147.45,1.35622048]
[1728824584219,6.7792,147.51,147.41,23.776884]
[1728824584220,6.7792,147.51,147.47,6.7807]
[1728824589631,22.7232,147.54,147.46,1.35609179]
[1728824589805,22.7232,147.54,147.43,1.35599834]
[1728824590003,22.7232,147.54,147.49,6.7799]
[1728824590215,6.7783,147.53,147.49,6.7799]
[1728824592497,22.7232,147.54,147.52,6.7787]
[1728824592823,276.3376,147.61,147.43,4.87280198]
[1728824592824,6.7774,147.55,147.51,6.7791]
[1728824593198,6.777,147.56,147.52,6.7787]
[1728824593821,6.7765,147.57,147.53,6.7781]
[1728824594130,22.0938,147.58,147.55,6.777]
[1728824594513,22.0938,147.58,147.54,23.7213]
[1728824595026,6.7756,147.59,147.55,6.7771]
[1728824596509,6.7747,147.61,147.56,6.7768]
[1728824596923,6.7751,147.6,147.56,6.7768]
[1728824597228,6.7751,147.6,147.55,26.7772]
[1728824597532,6.7755,147.59,147.55,26.7772]
[1728824599125,6.775,147.6,147.56,1.35527019]
[1728824599338,6.7747,147.61,147.57,6.7763]
[1728824599513,22.0938,147.62,147.58,8.13084723]
[1728824599822,22.0938,147.62,147.59,6.7754]
[1728824600222,15.7189,147.62,147.58,18.29444723]
[1728824600422,15.7189,147.62,147.6,6.775]
[1728824601240,15.7189,147.62,147.59,20.0]
[1728824601532,15.7189,147.62,147.59,26.7754]
[1728824601739,15.7189,147.65,147.59,20.0]
[1728824601935,15.7189,147.65,147.62,6.7738]
[1728824602111,15.7189,147.69,147.61,20.0]
[1728824602425,6.7719,147.67,147.62,8.12834599]
[1728824602620,6.7719,147.67,147.62,6.7738]
[1728824602816,6.7714,147.68,147.63,8.12806176]
[1728824603023,6.7714,147.68,147.64,6.7731]
[1728824603218,22.4898,147.69,147.64,6.7731]
[1728824603413,22.4898,147.69,147.65,1.35441999]
[1728824603614,22.4898,147.69,147.65,8.12711999]
[1728824604027,15.7189,147.69,147.66,1.35437105]
[1728824604229,15.7189,147.69,147.65,8.12701361]
[1728824604437,6.3749,147.7,147.66,8.12620304]
[1728824604734,6.3749,147.7,147.67,6.7718]
[1728824605032,15.7189,147.73,147.68,1.35415775]
[1728824605209,15.7189,147.73,147.69,6.7708]
[1728824606112,13.1435,147.74,147.69,6.7708]
[1728824606526,13.1435,147.74,147.7,6.7704]
[1728824606718,387.4,147.73,147.7,6.7704]
[1728824607729,387.4,147.73,147.71,6.7699]
[1728824608237,387.4,147.73,147.72,6.7695]